lending/lending_fUSD_20250819
["ID","MTS","AMOUNT","RATE_DAILY","PERIOD"]
[380277312,1755631113784,-437.64,0.00025465,30]
[380277313,1755631113815,-400.0,0.00025465,30]
[380277314,1755631113846,-854.72,0.00025465,30]
[380277315,1755631113876,-400.0,0.00025465,30]
[380277316,1755631113905,-531.2,0.00025465,30]
[380277317,1755631113934,-169.69546421,0.00025465,30]
[380277318,1755631113964,-888.25,0.00025465,30]
[380277319,1755631113994,-842.32,0.00025465,30]
[380277320,1755631114024,-1920.95,0.00025465,30]
[380277321,1755631114054,-1843.66,0.00025465,30]
[380277322,1755631114083,-589.48,0.00025465,30]
[380277323,1755631114116,-1357.11,0.00025465,30]
[380277324,1755631114148,-1090.36,0.00025465,30]
[380277325,1755631114180,-258.35165295,0.00025465,30]
[380277326,1755631114212,-400.0,0.00025465,30]
[380277327,1755631114245,-733.36,0.00025465,30]
[380277328,1755631114278,-2339.92,0.00025465,30]
[380277329,1755631114312,-400.0,0.00025465,30]
[380277330,1755631114346,-529.77524369,0.00025465,30]
[380277331,1755631114381,-1713.64,0.00025465,30]
[380277332,1755631114410,-530.76,0.00025465,30]
[380277333,1755631114438,-400.0,0.00025465,30]
[380277334,1755631114470,-400.0,0.00025465,30]
[380277335,1755631114500,-594.02,0.00025465,30]
[380277336,1755631114529,-2161.34,0.00025465,30]
[380277337,1755631114558,-785.37,0.00025465,30]
[380277338,1755631114586,-925.07,0.00025465,30]
[380277339,1755631114616,-400.0,0.00025465,30]
[380277340,1755631114644,-1533.15,0.00025465,30]
[380277341,1755631114671,-1481.14,0.00025465,30]
[380277342,1755631114699,-400.0,0.00025465,30]
[380277343,1755631114726,-400.0,0.00025465,30]
[380277344,1755631114754,-424.97,0.00025465,30]
[380277345,1755631114783,-2049.37,0.00025465,30]
[380277346,1755631114810,-400.0,0.00025465,30]
[380277347,1755631114838,-535.14,0.00025465,30]
[380277348,1755631114867,-2172.05,0.00025465,30]
[380277349,1755631114896,-400.0,0.00025465,30]
[380277350,1755631114924,-1532.6,0.00025465,30]
[380277351,1755631114951,-831.55,0.00025465,30]
[380277352,1755631114979,-853.09,0.00025465,30]
[380277353,1755631115007,-1512.48,0.00025465,30]
[380277354,1755631115036,-400.0,0.00025465,30]
[380277355,1755631115064,-757.23,0.00025465,30]
[380277356,1755631115093,-834.74,0.00025465,30]
[380277357,1755631115123,-528.08,0.00025465,30]
[380277358,1755631115151,-400.0,0.00025465,30]
[380277359,1755631115413,-1466.98,0.00025465,30]
[380277360,1755631115449,-1667.74,0.00025465,30]
[380277361,1755631115481,-851.95,0.00025465,30]
[380277362,1755631115516,-400.0,0.00025465,30]
[380277363,1755631115547,-400.0,0.00025465,30]
[380277364,1755631115576,-585.37,0.00025465,30]
[380277365,1755631115611,-1678.23,0.00025465,30]
[380277366,1755631115640,-500.95,0.00025465,30]
[380277367,1755631115669,-400.0,0.00025465,30]
[380277368,1755631115697,-990.17,0.00025465,30]
[380277369,1755631115726,-1498.02,0.00025465,30]
[380277370,1755631115754,-414.92,0.00025465,30]
[380277371,1755631115784,-490.9,0.00025465,30]
[380277372,1755631115815,-837.81,0.00025465,30]
[380277373,1755631115845,-684.54,0.00025465,30]
[380277374,1755631115876,-400.0,0.00025465,30]
[380277375,1755631115904,-916.66,0.00025465,30]
[380277376,1755631115932,-1483.77,0.00025465,30]
[380277377,1755631115962,-2023.25,0.00025465,30]
[380277378,1755631115990,-197.15934836,0.00025465,30]
[380277379,1755631116019,-827.87,0.00025465,30]
[380277380,1755631116048,-400.0,0.00025465,30]
[380277381,1755631116078,-1863.32,0.00025465,30]
[380277382,1755631116108,-1962.6,0.00025465,30]
[380277383,1755631116139,-539.12,0.00025465,30]
[380277384,1755631116170,-1489.75,0.00025465,30]
[380277385,1755631116200,-804.37,0.00025465,30]
[380277386,1755631116231,-1279.96,0.00025465,30]
[380277387,1755631116261,-879.44,0.00025465,30]
[380277388,1755631116292,-400.0,0.00025465,30]
[380277389,1755631116323,-736.46,0.00025465,30]
[380277390,1755631116352,-333.98435225,0.00025465,30]
[380277391,1755631116388,-3004.1,0.00025465,30]
[380277392,1755631116421,-903.83,0.00025465,30]
[380277393,1755631116454,-400.0,0.00025465,30]
[380277394,1755631116486,-540.41,0.00025465,30]
[380277395,1755631116520,-400.0,0.00025465,30]
[380277396,1755631116548,-452.13,0.00025465,30]
[380277397,1755631116575,-768.98,0.00025465,30]
[380277398,1755631116604,-1813.68,0.00025465,30]
[380277399,1755631116637,-400.0,0.00025465,30]
[380277400,1755631116665,-400.0,0.00025465,30]
[380277401,1755631116693,-2223.82,0.00025465,30]
[380277402,1755631116722,-400.0,0.00025465,30]
[380277403,1755631116752,-400.0,0.00025465,30]
[380277404,1755631116780,-762.55,0.00025465,30]
[380277405,1755631116809,-447.68,0.00025465,30]
[380277406,1755631116836,-2258.26,0.00025465,30]
[380277407,1755631116867,-2140.5,0.00025465,30]
[380277408,1755631116894,-400.0,0.00025465,30]
[380277409,1755631116921,-400.0,0.00025465,30]
[380277410,1755631116949,-666.94,0.00025465,30]
[380277411,1755631116976,-400.0,0.00025465,30]
[380277412,1755631117003,-400.0,0.00025465,30]
[380277413,1755631117031,-400.0,0.00025465,30]
[380277414,1755631117058,-699.19,0.00025465,30]
[380277415,1755631117085,-786.12,0.00025465,30]
[380277416,1755631117115,-1078.83,0.00025465,30]
[380277417,1755631117145,-400.0,0.00025465,30]
[380277418,1755631117173,-2272.23,0.00025465,30]
[380277419,1755631117203,-685.74,0.00025465,30]
[380277420,1755631117233,-686.36,0.00025465,30]
[380277421,1755631117262,-1514.98,0.00025465,30]
[380277422,1755631117291,-400.0,0.00025465,30]
[380277423,1755631117320,-400.0,0.00025465,30]
[380277424,1755631117348,-400.0,0.00025465,30]
[380277425,1755631117378,-783.3,0.00025465,30]
[380277426,1755631117407,-927.22,0.00025465,30]
[380277427,1755631117435,-858.73,0.00025465,30]
[380277428,1755631117463,-463.57,0.00025465,30]
[380277429,1755631117492,-638.06,0.00025465,30]
[380277430,1755631117521,-1217.67,0.00025465,30]
[380277431,1755631117551,-1055.26,0.00025465,30]
[380277432,1755631117579,-617.22,0.00025465,30]
[380277433,1755631117607,-654.88,0.00025465,30]
[380277434,1755631117638,-927.42,0.00025465,30]
[380277435,1755631117666,-400.0,0.00025465,30]
[380277436,1755631117696,-877.36,0.00025465,30]
[380277437,1755631117725,-1451.41,0.00025465,30]
[380277438,1755631117756,-206.27988018,0.00025465,30]
[380277439,1755631117787,-774.15,0.00025465,30]
[380277440,1755631117815,-755.17,0.00025465,30]
[380277441,1755631117842,-1269.4,0.00025465,30]
[380277442,1755631117872,-850.21,0.00025465,30]
[380277443,1755631117899,-400.0,0.00025465,30]
[380277444,1755631117927,-1574.07,0.00025465,30]
[380277445,1755631117955,-400.0,0.00025465,30]
[380277446,1755631117982,-400.0,0.00025465,30]
[380277447,1755631118009,-893.8,0.00025465,30]
[380277448,1755631118038,-2151.13,0.00025465,30]
[380277449,1755631118066,-1796.62,0.00025465,30]
[380277450,1755631118094,-400.0,0.00025465,30]
[380277451,1755631118123,-400.0,0.00025465,30]
[380277452,1755631118152,-498.10437175,0.00025465,30]
[380277453,1755631118181,-1524.91,0.00025465,30]
[380277454,1755631118442,-400.0,0.00025465,30]
[380277455,1755631118474,-1268.61,0.00025465,30]
[380277456,1755631118506,-3537.65,0.00025465,30]
[380277457,1755631118536,-400.0,0.00025465,30]
[380277458,1755631118566,-632.78,0.00025465,30]
[380277459,1755631118595,-1091.34,0.00025465,30]
[380277460,1755631118623,-1777.71,0.00025465,30]
[380277461,1755631118652,-1517.91,0.00025465,30]
[380277462,1755631118680,-400.0,0.00025465,30]
[380277463,1755631118709,-400.0,0.00025465,30]
[380277464,1755631118737,-603.15,0.00025465,30]
[380277465,1755631118765,-737.73,0.00025465,30]
[380277466,1755631118798,-759.41,0.00025465,30]
[380277467,1755631118826,-1092.33,0.00025465,30]
[380277468,1755631118855,-2887.56,0.00025465,30]
[380277469,1755631118885,-400.0,0.00025465,30]
[380277470,1755631118914,-1154.89,0.00025465,30]
[380277471,1755631118942,-400.0,0.00025465,30]
[380277472,1755631118970,-400.0,0.00025465,30]
[380277473,1755631118999,-540.17,0.00025465,30]
[380277474,1755631119027,-1604.08,0.00025465,30]
[380277475,1755631119055,-400.0,0.00025465,30]
[380277476,1755631119082,-558.64,0.00025465,30]
[380277477,1755631119110,-464.91,0.00025465,30]
[380277478,1755631119140,-400.0,0.00025465,30]
[380277479,1755631119169,-996.27,0.00025465,30]
[380277480,1755631119198,-400.0,0.00025465,30]
[380277481,1755631119228,-1174.54,0.00025465,30]
[380277482,1755631119256,-400.0,0.00025465,30]
[380277483,1755631119286,-400.0,0.00025465,30]
[380277484,1755631119315,-467.39,0.00025465,30]
[380277485,1755631119345,-1287.79,0.00025465,30]
[380277486,1755631119376,-410.72,0.00025465,30]
[380277487,1755631119414,-645.33,0.00025465,30]
[380277488,1755631119444,-400.0,0.00025465,30]
[380277489,1755631119473,-400.0,0.00025465,30]
[380277490,1755631119502,-400.0,0.00025465,30]
[380277491,1755631119531,-526.22276456,0.00025465,30]
[380277492,1755631119559,-591.41,0.00025465,30]
[380277493,1755631119588,-400.0,0.00025465,30]
[380277494,1755631119618,-1211.51,0.00025465,30]
[380277495,1755631119646,-657.43,0.00025465,30]
[380277496,1755631119674,-1321.19,0.00025465,30]
[380277497,1755631119703,-2333.41,0.00025465,30]
[380277498,1755631119732,-3141.86,0.00025465,30]
[380277499,1755631119761,-441.64,0.00025465,30]
[380277500,1755631119793,-895.33,0.00025465,30]
[380277501,1755631119822,-1312.21,0.00025465,30]
[380277502,1755631119850,-610.43,0.00025465,30]
[380277503,1755631119880,-912.37,0.00025465,30]
[380277504,1755631119909,-5048.43,0.00025465,30]
[380277505,1755631119940,-2777.22,0.00025465,30]
[380277506,1755631119968,-2638.42,0.00025465,30]
[380277507,1755631119996,-542.11,0.00025465,30]
[380277508,1755631120024,-542.28888113,0.00025465,30]
[380277509,1755631120052,-854.75,0.00025465,30]
[380277510,1755631120081,-582.29,0.00025465,30]
[380277511,1755631120110,-2058.34,0.00025465,30]
[380277512,1755631120142,-807.81,0.00025465,30]
[380277513,1755631120172,-2108.39,0.00025465,30]
[380277514,1755631120206,-400.0,0.00025465,30]
[380277515,1755631120239,-3236.93,0.00025465,30]
[380277516,1755631120271,-2755.38,0.00025465,30]
[380277517,1755631120300,-494.07,0.00025465,30]
[380277518,1755631120328,-771.8,0.00025465,30]
[380277519,1755631120358,-1485.66,0.00025465,30]
[380277520,1755631120390,-400.0,0.00025465,30]
[380277521,1755631120421,-1688.58,0.00025465,30]
[380277522,1755631120450,-2731.01,0.00025465,30]
[380277523,1755631120478,-716.5,0.00025465,30]
[380277524,1755631120506,-400.0,0.00025465,30]
[380277525,1755631120535,-1382.11,0.00025465,30]
[380277526,1755631120564,-2951.24,0.00025465,30]
[380277527,1755631120593,-408.32,0.00025465,30]
[380277528,1755631120621,-6757.75,0.00025465,30]
[380277529,1755631120651,-812.97,0.00025465,30]
[380277530,1755631120682,-1007.53,0.00025465,30]
[380277531,1755631120711,-1417.55,0.00025465,30]
[380277532,1755631120739,-400.0,0.00025465,30]
[380277533,1755631120770,-2420.72,0.00025465,30]
[380277534,1755631120799,-447.89,0.00025465,30]
[380277535,1755631120828,-632.73,0.00025465,30]
[380277536,1755631120856,-553.64,0.00025465,30]
[380277537,1755631120885,-744.53,0.00025465,30]
[380277538,1755631120913,-1672.31,0.00025465,30]
[380277539,1755631120942,-1648.48,0.00025465,30]
[380277540,1755631120973,-8716.72,0.00025465,30]
[380277541,1755631121006,-1174.9,0.00025465,30]
[380277542,1755631121036,-1247.73,0.00025465,30]
[380277543,1755631121065,-400.0,0.00025465,30]
[380277544,1755631121096,-2800.23,0.00025465,30]
[380277545,1755631121126,-155.79782363,0.00025465,30]
[380277546,1755631121157,-1855.67,0.00025465,30]
[380277547,1755631121190,-1549.4,0.00025465,30]
[380277548,1755631121225,-2735.6,0.00025465,30]
[380277549,1755631121504,-549.35,0.00025465,30]
[380277550,1755631121536,-1600.8,0.00025465,30]
[380277551,1755631121566,-1083.07,0.00025465,30]
[380277552,1755631121596,-2521.93,0.00025465,30]
[380277553,1755631121625,-407.03,0.00025465,30]
[380277554,1755631121656,-1663.82,0.00025465,30]
[380277555,1755631121685,-1863.39,0.00025465,30]
[380277556,1755631121714,-2006.03,0.00025465,30]
[380277557,1755631121743,-867.04,0.00025465,30]
[380277558,1755631121776,-1558.27,0.00025465,30]
[380277559,1755631121805,-1625.91,0.00025465,30]
[380277560,1755631121838,-3914.85,0.00025465,30]
[380277561,1755631121876,-801.03,0.00025465,30]
[380277562,1755631121906,-177.2349493,0.00025465,30]
[380277563,1755631121937,-1784.81,0.00025465,30]
[380277564,1755631121966,-1785.17,0.00025465,30]
[380277565,1755631121995,-1700.25,0.00025465,30]
[380277566,1755631122024,-2242.56,0.00025465,30]
[380277567,1755631122054,-834.13,0.00025465,30]
[380277568,1755631122084,-1018.63,0.00025465,30]
[380277569,1755631122119,-484.61,0.00025465,30]
[380277570,1755631122152,-400.0,0.00025465,30]
[380277571,1755631122184,-1460.04,0.00025465,30]
[380277572,1755631122213,-801.25,0.00025465,30]
[380277573,1755631122243,-4032.43,0.00025465,30]
[380277574,1755631122273,-2527.74,0.00025465,30]
[380277575,1755631122303,-4275.48,0.00025465,30]
[380277576,1755631122335,-400.0,0.00025465,30]
[380277577,1755631122369,-1812.27,0.00025465,30]
[380277578,1755631122399,-434.72,0.00025465,30]
[380277579,1755631122429,-7013.86,0.00025465,30]
[380277580,1755631122459,-1435.4,0.00025465,30]
[380277581,1755631122489,-1890.92,0.00025465,30]
[380277582,1755631122519,-4142.44,0.00025465,30]
[380277583,1755631122547,-400.0,0.00025465,30]
[380277584,1755631122576,-400.0,0.00025465,30]
[380277585,1755631122604,-1775.43,0.00025465,30]
[380277586,1755631122635,-9303.97,0.00025465,30]
[380277587,1755631122664,-824.79,0.00025465,30]
[380277588,1755631122693,-400.0,0.00025465,30]
[380277589,1755631122724,-2003.15,0.00025465,30]
[380277590,1755631122752,-1357.73,0.00025465,30]
[380277591,1755631122782,-3458.05,0.00025465,30]
[380277592,1755631122813,-1487.81,0.00025465,30]
[380277593,1755631122844,-400.0,0.00025465,30]
[380277594,1755631122874,-400.0,0.00025465,30]
[380277595,1755631122903,-4233.21,0.00025465,30]
[380277596,1755631122931,-1146.31,0.00025465,30]
[380277597,1755631122960,-400.0,0.00025465,30]
[380277598,1755631122989,-1420.57,0.00025465,30]
[380277599,1755631123018,-2399.65,0.00025465,30]
[380277600,1755631123050,-5837.98,0.00025465,30]
[380277601,1755631123080,-400.0,0.00025465,30]
[380277602,1755631123111,-8152.85,0.00025465,30]
[380277603,1755631123144,-8014.73,0.00025465,30]
[380277604,1755631123175,-444.69,0.00025465,30]
[380277605,1755631123207,-3351.12,0.00025465,30]
[380277606,1755631123241,-713.75,0.00025465,30]
[380277607,1755631123276,-400.0,0.00025465,30]
[380277608,1755631123311,-4699.45,0.00025465,30]
[380277609,1755631123346,-840.72,0.00025465,30]
[380277610,1755631123377,-5044.7,0.00025465,30]
[380277611,1755631123407,-3116.05,0.00025465,30]
[380277612,1755631123437,-1745.42,0.00025465,30]
[380277613,1755631123467,-2077.84,0.00025465,30]
[380277614,1755631123496,-755.9,0.00025465,30]
[380277615,1755631123525,-3767.8,0.00025465,30]
[380277616,1755631123555,-400.0,0.00025465,30]
[380277617,1755631123585,-400.0,0.00025465,30]
[380277618,1755631123617,-1623.73,0.00025465,30]
[380277619,1755631123647,-630.29,0.00025465,30]
[380277620,1755631123675,-458.85,0.00025465,30]
[380277621,1755631123703,-1621.47,0.00025465,30]
[380277622,1755631123730,-665.7,0.00025465,30]
[380277623,1755631123758,-7442.7,0.00025465,30]
[380277624,1755631123787,-1470.22,0.00025465,30]
[380277625,1755631123816,-3397.55,0.00025465,30]
[380277626,1755631123844,-400.0,0.00025465,30]
[380277627,1755631123887,-197.63449272,0.0002548,30]
[380277628,1755631123915,-500.0,0.0002548,30]
[380277629,1755631123944,-511.0,0.0002548,30]
[380277630,1755631123973,-500.0,0.0002548,30]
[380277631,1755631124001,-400.0,0.00025739,30]
[380277632,1755631124031,-312.41602759,0.00025739,30]
[380277633,1755631124063,-424.48,0.00025739,30]
[380277634,1755631124096,-573.46,0.00025739,30]
[380277635,1755631124125,-1099.82,0.00025739,30]
[380277636,1755631124155,-400.0,0.00025739,30]
[380277637,1755631124184,-1032.27,0.00025739,30]
[380277638,1755631124216,-405.59,0.00025739,30]
[380277639,1755631124244,-2773.84,0.00025739,30]
[380277640,1755631124277,-2616.85,0.00025739,30]
[380277641,1755631124310,-569.65,0.00025739,30]
[380277642,1755631124341,-609.41,0.00025739,30]
[380277643,1755631124372,-2291.88,0.00025739,30]
[380277644,1755631124779,-1113.47,0.00025739,30]
[380277645,1755631124816,-1609.3,0.00025739,30]
[380277646,1755631124848,-1375.63,0.00025739,30]
[380277647,1755631124879,-2391.62,0.00025739,30]
[380277648,1755631124910,-567.71,0.00025739,30]
[380277649,1755631124940,-976.66,0.00025739,30]
[380277650,1755631124972,-444.55,0.00025739,30]
[380277651,1755631125004,-400.0,0.00025739,30]
[380277652,1755631125036,-655.88,0.00025739,30]
[380277653,1755631125068,-400.0,0.00025739,30]
[380277654,1755631125102,-1066.76,0.00025739,30]
[380277655,1755631125135,-750.6,0.00025739,30]
[380277656,1755631125168,-400.0,0.00025739,30]
[380277657,1755631125199,-983.97,0.00025739,30]
[380277658,1755631125232,-1275.26,0.00025739,30]
[380277659,1755631125263,-475.91,0.00025739,30]
[380277660,1755631125292,-2197.7,0.00025739,30]
[380277661,1755631125323,-441.25,0.00025739,30]
[380277662,1755631125354,-400.0,0.00025739,30]
[380277663,1755631125386,-400.0,0.00025739,30]
[380277664,1755631125420,-400.0,0.00025739,30]
[380277665,1755631125451,-514.92,0.00025739,30]
[380277666,1755631125481,-400.0,0.00025739,30]
[380277667,1755631125513,-400.0,0.00025739,30]
[380277668,1755631125543,-633.48,0.00025739,30]
[380277669,1755631125573,-400.0,0.00025739,30]
[380277670,1755631125604,-514.84,0.00025739,30]
[380277671,1755631125637,-680.06,0.00025739,30]
[380277672,1755631125669,-2380.79,0.00025739,30]
[380277673,1755631125698,-2214.91,0.00025739,30]
[380277674,1755631125727,-2318.11,0.00025739,30]
[380277675,1755631125757,-624.94,0.00025739,30]
[380277676,1755631125787,-480.84,0.00025739,30]
[380277677,1755631125816,-457.25,0.00025739,30]
[380277678,1755631125845,-600.44,0.00025739,30]
[380277679,1755631125876,-840.02,0.00025739,30]
[380277680,1755631125904,-1691.99,0.00025739,30]
[380277681,1755631125933,-1037.15,0.00025739,30]
[380277682,1755631125962,-400.0,0.00025739,30]
[380277683,1755631125991,-400.0,0.00025739,30]
[380277684,1755631126022,-513.97,0.00025739,30]
[380277685,1755631126056,-933.24,0.00025739,30]
[380277686,1755631126088,-400.0,0.00025739,30]
[380277687,1755631126118,-421.43,0.00025739,30]
[380277688,1755631126149,-674.85,0.00025739,30]
[380277689,1755631126178,-925.02,0.00025739,30]
[380277690,1755631126208,-2152.71,0.00025739,30]
[380277691,1755631126237,-400.0,0.00025739,30]
[380277692,1755631126267,-1838.62,0.00025739,30]
[380277693,1755631126297,-1032.92,0.00025739,30]
[380277694,1755631126328,-618.96,0.00025739,30]
[380277695,1755631126359,-264.18515461,0.00025739,30]
[380277696,1755631126390,-2177.09,0.00025739,30]
[380277697,1755631126418,-1491.89,0.00025739,30]
[380277698,1755631126448,-400.0,0.00025739,30]
[380277699,1755631126529,-400.0,0.00025739,30]
[380277700,1755631126608,-521.21,0.00025739,30]
[380277701,1755631126691,-808.44,0.00025739,30]
[380277702,1755631126770,-400.0,0.00025739,30]
[380277703,1755631126849,-741.66,0.00025739,30]
[380277704,1755631126931,-400.0,0.00025739,30]
[380277705,1755631127004,-400.0,0.00025739,30]
[380277706,1755631127085,-520.65,0.00025739,30]
[380277707,1755631127166,-759.93,0.00025739,30]
[380277708,1755631127249,-400.0,0.00025739,30]
[380277709,1755631127332,-191.83072911,0.00025739,30]
[380277710,1755631127427,-1990.94,0.00025739,30]
[380277711,1755631127509,-400.0,0.00025739,30]
[380277712,1755631127586,-400.0,0.00025739,30]
[380277713,1755631127661,-1171.85,0.00025739,30]
[380277714,1755631127738,-400.0,0.00025739,30]
[380277715,1755631127815,-2003.39,0.00025739,30]
[380277716,1755631127890,-400.0,0.00025739,30]
[380277717,1755631127965,-258.42844957,0.00025739,30]
[380277718,1755631128050,-400.0,0.00025739,30]
[380277719,1755631128133,-400.0,0.00025739,30]
[380277720,1755631128219,-727.99,0.00025739,30]
[380277721,1755631128305,-1683.21,0.00025739,30]
[380277722,1755631128390,-721.89,0.00025739,30]
[380277723,1755631128471,-933.6,0.00025739,30]
[380277724,1755631128550,-1540.32,0.00025739,30]
[380277725,1755631128628,-667.4,0.00025739,30]
[380277726,1755631128707,-1549.09,0.00025739,30]
[380277727,1755631128785,-400.0,0.00025739,30]
[380277728,1755631128860,-447.13,0.00025739,30]
[380277729,1755631128941,-400.0,0.00025739,30]
[380277730,1755631129018,-400.0,0.00025739,30]
[380277731,1755631129100,-834.9,0.00025739,30]
[380277732,1755631129181,-2463.0,0.00025739,30]
[380277733,1755631129264,-400.0,0.00025739,30]
[380277734,1755631129348,-1180.21,0.00025739,30]
[380277735,1755631129427,-2651.29,0.00025739,30]
[380277736,1755631129505,-2251.53,0.00025739,30]
[380277737,1755631129582,-1354.08,0.00025739,30]
[380277738,1755631130006,-476.92,0.00025739,30]
[380277739,1755631130092,-400.0,0.00025739,30]
[380277740,1755631130175,-1498.84,0.00025739,30]
[380277741,1755631130260,-1077.46,0.00025739,30]
[380277742,1755631130345,-893.12,0.00025739,30]
[380277743,1755631130428,-400.0,0.00025739,30]
[380277744,1755631130508,-994.07,0.00025739,30]
[380277745,1755631130592,-1190.15,0.00025739,30]
[380277746,1755631130671,-400.0,0.00025739,30]
[380277747,1755631130752,-400.0,0.00025739,30]
[380277748,1755631130837,-1019.51,0.00025739,30]
[380277749,1755631130921,-400.0,0.00025739,30]
[380277750,1755631131008,-477.1,0.00025739,30]
[380277751,1755631131097,-1865.24,0.00025739,30]
[380277752,1755631131188,-947.97,0.00025739,30]
[380277753,1755631131270,-400.0,0.00025739,30]
[380277754,1755631131357,-400.0,0.00025739,30]
[380277755,1755631131442,-437.88,0.00025739,30]
[380277756,1755631131521,-1607.24,0.00025739,30]
[380277757,1755631131601,-400.0,0.00025739,30]
[380277758,1755631131679,-400.0,0.00025739,30]
[380277759,1755631131759,-482.8,0.00025739,30]
[380277760,1755631131840,-400.0,0.00025739,30]
[380277761,1755631131932,-1008.25,0.00025739,30]
[380277762,1755631132016,-400.0,0.00025739,30]
[380277763,1755631132103,-400.0,0.00025739,30]
[380277764,1755631132188,-411.04,0.00025739,30]
[380277765,1755631132275,-438.9,0.00025739,30]
[380277766,1755631132362,-2238.16,0.00025739,30]
[380277767,1755631132448,-371.25142227,0.00025739,30]
[380277768,1755631132527,-400.0,0.00025739,30]
[380277769,1755631132607,-698.53,0.00025739,30]
[380277770,1755631132692,-605.66,0.00025739,30]
[380277771,1755631132777,-400.0,0.00025739,30]
[380277772,1755631132856,-461.41,0.00025739,30]
[380277773,1755631132937,-1632.1,0.00025739,30]
[380277774,1755631133017,-579.14,0.00025739,30]
[380277775,1755631133097,-400.0,0.00025739,30]
[380277776,1755631133181,-400.0,0.00025739,30]
[380277777,1755631133265,-400.0,0.00025739,30]
[380277778,1755631133350,-400.0,0.00025739,30]
[380277779,1755631133433,-400.0,0.00025739,30]
[380277780,1755631133511,-1825.28,0.00025739,30]
[380277781,1755631133589,-1523.06,0.00025739,30]
[380277782,1755631133665,-400.0,0.00025739,30]
[380277783,1755631133744,-400.0,0.00025739,30]
[380277784,1755631133820,-408.97,0.00025739,30]
[380277785,1755631133896,-403.44,0.00025739,30]
[380277786,1755631133972,-400.0,0.00025739,30]
[380277787,1755631134055,-445.03,0.00025739,30]
[380277788,1755631134139,-400.0,0.00025739,30]
[380277789,1755631134222,-1358.16,0.00025739,30]
[380277790,1755631134308,-410.03,0.00025739,30]
[380277791,1755631134392,-400.0,0.00025739,30]
[380277792,1755631134475,-912.76,0.00025739,30]
[380277793,1755631134557,-1223.73,0.00025739,30]
[380277794,1755631134637,-236.69525764,0.00025739,30]
[380277795,1755631134722,-964.55,0.00025739,30]
[380277796,1755631134802,-907.48,0.00025739,30]
[380277797,1755631134888,-1038.22,0.00025739,30]
[380277798,1755631134973,-400.0,0.00025739,30]
[380277799,1755631135059,-400.0,0.00025739,30]
[380277800,1755631135145,-2133.63,0.00025739,30]
[380277801,1755631135230,-406.02,0.00025739,30]
[380277802,1755631135316,-960.18,0.00025739,30]
[380277803,1755631135400,-1003.4,0.00025739,30]
[380277804,1755631135483,-416.9,0.00025739,30]
[380277805,1755631135564,-479.67,0.00025739,30]
[380277806,1755631135645,-1658.41,0.00025739,30]
[380277807,1755631135725,-400.0,0.00025739,30]
[380277808,1755631135804,-672.86,0.00025739,30]
[380277809,1755631135882,-1715.1,0.00025739,30]
[380277810,1755631135958,-400.0,0.00025739,30]
[380277811,1755631136037,-503.65,0.00025739,30]